Cogmind - Beta 17.1 @@@ ROGUE MODE // 2026.09.24 @ 23:42:18 Player: Err. String Expected Got Nil Result: Destroyed by X-77 Beamer with Gatling Laser Performance ------------- Evolutions (5) 2500 Regions Visited (17) 3400 Robots Destroyed (260) 1300 Value Destroyed (10745) 10745 Prototype IDs (30) 600 Alien Tech Used (0) 0 Bonus (3405) 3405 TOTAL SCORE: 21950 Bonus ------- High Alert Combat Kills 1276 Follower Combat Kills 629 Entered Garrisons 400 Entered DSFs 500 Met Data Miner 300 Acquired ECA 300 Cogmind --------- Core Integrity 0/1000 Matter 123/300 Energy 80/100 System Corruption 12% Temperature Cool (36) Movement Core (50) Location -5/Factory Parts ------- > --- POWER (1) -------- (None) > --- PROPULSION (5) --- (None) > --- UTILITY (7) ------ Advanced Terrain Scan Processor Graphene Brace > --- WEAPON (4) ------- (None) > --- INVENTORY (5) ---- Improved Cooling System Experimental Sensor Array Experimental Sensor Array Improved Datajack Plasma Cutter Peak State ------------ > --- POWER ------------ Neutrino Core > --- PROPULSION ------- Heavy Treads Improved Heavy Treads > --- UTILITY ---------- Advanced Heat Sink Improved Cooling System Huge Storage Unit Experimental Sensor Array Improved Signal Interpreter Advanced Terrain Scan Processor Core Analyzer > --- WEAPON ----------- Hypervelocity Gauss Rifle KE Penetrator KE Penetrator KE Penetrator > --- INVENTORY -------- Micro Fission Core Improved Carbon-fiber Leg Improved Titanium Leg Improved Titanium Leg Improved Titanium Leg Improved Titanium Leg Improved Titanium Leg Flexi-carbon Leg Advanced Cooling System High-capacity Storage Unit Improved Matter Compressor Experimental Sensor Array Improved Terrain Scanner Transmission Jammer Improved Light Armor Plating Graphene Brace Heavy Beamcaster Proton Cannon Phase Cannon KE Penetrator Mass Driver Heavy Rocket Launcher Improved Datajack Plasma Cutter Power Sword [Rating: 96] Favorites ----------- Power Light Nuclear Core Engine Improved Deuterium Engine Power Core Light Nuclear Core Reactor Light Antimatter Reactor Propulsion Light Treads Treads Light Treads Leg Improved Titanium Leg Wheel Armored Huge Wheel Utility High-capacity Storage Unit Device Experimental Sensor Array Storage High-capacity Storage Unit Processor Improved Signal Interpreter Hackware Hacking Suite Protection Improved Medium Armor Plating Weapon Gauss Rifle Energy Gun Plasma Rifle Energy Cannon Phase Cannon Ballistic Gun Gauss Rifle Ballistic Cannon Light Cannon Launcher Heavy Rocket Launcher Slashing Weapon Katana Special Melee Weapon Improved Datajack Build | -11 -10 -10 -10 -9 -8 -8 -8 -7 -7 -7 -7 -7 -7 -6 -6 -6 -5 ------- Run | Yrd Mat Min Exi Min Mat Sto Gar Fac Gar Fac Low Low Dat Pro Fac DSF Fac Slots Evolved 10 | . . . . . 4 . . 2 . . . . . . 2 . 2 Power . | . . . . . . . . . . . . . . . . . . Propulsion 3 | . . . . . 2 . . . . . . . . . . . 1 Utility 5 | . . . . . 1 . . 2 . . . . . . 1 . 1 Weapon 2 | . . . . . 1 . . . . . . . . . 1 . . Parts Attached 153 | 1 13 2 . 3 18 20 9 15 22 5 3 1 1 1 6 12 21 Power 17 | . 1 1 . . 2 2 2 2 1 . . 1 . 1 . 2 2 Engine 6 | . . 1 . . . 1 . 2 . . . 1 . 1 . . . Core 10 | . 1 . . . 2 1 2 . . . . . . . . 2 2 Reactor 1 | . . . . . . . . . 1 . . . . . . . . Propulsion 39 | . 4 . . 1 4 8 2 6 6 . . . . . 2 . 6 Treads 18 | . 2 . . 1 . 8 2 . 2 . . . . . 2 . 1 Leg 17 | . 2 . . . . . . 6 4 . . . . . . . 5 Wheel 4 | . . . . . 4 . . . . . . . . . . . . Hover . | . . . . . . . . . . . . . . . . . . Flight . | . . . . . . . . . . . . . . . . . . Utility 39 | 1 3 1 . . 1 1 3 5 6 2 1 . . . 3 4 8 Device 18 | 1 . 1 . . 1 1 2 . 3 . 1 . . . 1 1 6 Storage 7 | . 2 . . . . . . 1 1 . . . . . 2 1 . Processor 5 | . . . . . . . . 1 . 2 . . . . . . 2 Hackware 4 | . 1 . . . . . 1 1 1 . . . . . . . . Protection 5 | . . . . . . . . 2 1 . . . . . . 2 . Artifact . | . . . . . . . . . . . . . . . . . . Weapon 58 | . 5 . . 2 11 9 2 2 9 3 2 . 1 . 1 6 5 Energy Gun 16 | . 1 . . 1 7 3 1 . . . 1 . . . . 1 1 Energy Cannon 3 | . . . . . . 1 . . . 2 . . . . . . . Ballistic Gun 24 | . 2 . . 1 3 2 . 1 6 . 1 . 1 . 1 4 2 Ballistic Cannon 7 | . 1 . . . . 2 . . 1 1 . . . . . 1 1 Launcher 5 | . 1 . . . . 1 1 1 1 . . . . . . . . Special Weapon . | . . . . . . . . . . . . . . . . . . Impact Weapon . | . . . . . . . . . . . . . . . . . . Slashing Weapon 2 | . . . . . 1 . . . . . . . . . . . 1 Piercing Weapon . | . . . . . . . . . . . . . . . . . . Special Melee Weapon 1 | . . . . . . . . . 1 . . . . . . . . Unidentified Prototypes 13 | . . 1 . . 3 5 . . 1 2 . . . . 1 . . Parts Lost 41 | . 1 1 . 2 . 2 4 2 3 . . 1 . 3 . . 22 Power 8 | . . 1 . . . 2 . 1 . . . 1 . 1 . . 2 Propulsion 10 | . . . . 1 . . 1 . 1 . . . . . . . 7 Utility 8 | . . . . . . . 3 . 1 . . . . 1 . . 3 Weapon 15 | . 1 . . 1 . . . 1 1 . . . . 1 . . 10 Highest Loss Streak 22 | . 1 1 . 2 . 1 1 1 2 . . 1 . 3 . . 22 To Critical Strikes 1 | . . . . . . . . . 1 . . . . . . . . Average Backups 17 | 6 10 15 19 19 19 19 19 19 18 17 18 17 18 17 16 22 23 Power . | 1 1 . . . 1 . 1 . 1 1 1 . 1 . . . . Propulsion 2 | 4 1 . 1 . 4 5 5 3 2 2 2 2 2 2 1 5 6 Utility 5 | . 1 2 3 4 5 4 5 8 7 6 7 7 7 6 6 7 7 Weapon 6 | 1 5 10 14 13 7 7 6 5 5 6 6 6 6 5 5 6 6 Tool/Special . | . . . . . . . . . . . . . . . . . . Unused Backups 63 | . 9 . . 1 19 4 4 4 6 3 . . . . . 8 5 Power 2 | . 1 . . . . . 1 . . . . . . . . . . Propulsion 20 | . 3 . . . 4 . 1 2 1 1 . . . . . 6 2 Utility 14 | . 2 . . . 3 1 1 2 3 . . . . . . 1 1 Weapon 24 | . 3 . . 1 10 3 1 . 2 2 . . . . . 1 1 Tool/Special 3 | . . . . . 2 . . . . . . . . . . . 1 Average Slot Usage (%) 90 | . 100 99 100 99 79 95 98 99 84 83 83 84 66 83 79 86 79 Engine 4 | . 3 6 14 14 1 2 4 2 5 . . 4 7 7 6 1 . Core 3 | . 10 7 . . 7 5 4 4 . . . . . . . 4 4 Reactor 1 | . . . . . . . . . 1 7 7 2 . . . . . Treads 16 | . 14 28 28 28 . 30 35 1 10 15 15 15 15 15 12 13 10 Leg 4 | . 13 . . . . . . 28 8 . . . . . . . . Wheel 1 | . . . . . 17 2 . . . . . . . . . . . Device 5 | . 5 . . . 8 9 8 6 1 6 4 6 7 7 13 13 12 Storage 9 | . 14 14 14 14 9 9 9 7 7 7 7 7 7 7 6 6 5 Processor 3 | . . . . . . . . 6 7 6 7 7 7 7 6 6 13 Hackware 11 | . 8 14 14 14 9 9 8 15 13 15 15 15 15 14 6 6 2 Protection 1 | . . . . . . . . . 6 . 2 . . . 3 6 2 Energy Gun 4 | . . . . 10 10 7 8 7 3 . 2 7 1 . . 3 1 Ballistic Gun 13 | . 18 14 14 5 14 17 9 10 10 21 19 12 2 14 16 15 16 Ballistic Cannon 4 | . 8 13 14 11 1 1 9 4 3 . . . . . . 3 . Peak Build Rating 96 | 7 13 19 12 13 44 43 40 63 73 77 77 76 69 73 78 89 96 Average Rating 47 | 6 10 12 12 12 39 37 35 59 64 76 74 73 58 71 72 81 87 On Entrance 46 | 6 7 13 12 12 13 42 34 40 63 72 71 76 69 69 72 75 89 Avg Prop Armor Cover (%) 7 | . . . . . . 7 . . . . . . . . . . . Naked Turns . | . . . . . . . . . . . . . . . . . . Heaviest Build 123 | 11 50 50 50 51 58 58 65 70 74 70 69 67 67 67 71 123 122 Greatest Support 150 | 20 40 40 40 40 56 86 84 82 150 150 150 150 150 150 150 150 150 Greatest Overweight (x) 2 | . 2 1 1 1 1 2 1 . 1 . . . . . . . 2 Average Overweight (x) . | . . . 1 1 . . . . . . . . . . . . . Largest Inventory Capacity 25 | 8 20 20 20 20 20 20 20 20 20 20 20 20 20 20 20 25 25 Average Capacity 19 | 8 14 19 20 20 20 20 20 20 20 20 20 20 20 20 20 23 24 Most Carried 25 | 7 15 19 20 20 20 20 20 20 20 20 20 20 20 20 20 25 25 Average Carried 18 | 6 10 15 19 19 19 19 19 19 19 19 20 19 20 19 17 22 23 Final Capacity 25 | 8 20 20 20 20 20 20 20 20 20 20 20 20 20 20 20 25 5 Final Carried 25 | 7 15 19 20 20 20 20 20 20 20 20 20 20 20 18 17 25 5 Class Distribution -------------------- 26% | Mutant 22% | Hacker-Skirmisher 20% | Scavenger-Gunner 9% | Hacker-Tank 9% | Scavenger-Tank 3% | Gunner Dominant Class ---------------- Mutant | -10/Materials Mutant | -10/Mines Mutant | -10/Exiles Mutant | -9/Mines Scavenger-Gunner | -8/Materials Scavenger-Gunner | -8/Storage Scavenger-Gunner | -8/Garrison Hacker-Skirmisher | -7/Factory Hacker-Tank | -7/Garrison Hacker-Skirmisher | -7/Factory Hacker-Skirmisher | -7/Lower Caves Hacker-Skirmisher | -7/Lower Caves Scavenger-Mutant | -7/Data Miner Hacker-Skirmisher | -6/Proximity Caves Scavenger-Tank | -6/Factory Scavenger-Tank | -6/DSF Scavenger-Tank | -5/Factory Resources | -11 -10 -10 -10 -9 -8 -8 -8 -7 -7 -7 -7 -7 -7 -6 -6 -6 -5 ----------- Run | Yrd Mat Min Exi Min Mat Sto Gar Fac Gar Fac Low Low Dat Pro Fac DSF Fac Matter Collected 7853 | 263 452 187 164 116 737 903 644 761 968 326 237 289 . 793 . 711 302 Remotely . | . . . . . . . . . . . . . . . . . . Salvage Created 10368 | 205 639 240 . 185 1019 2128 926 708 1557 350 251 232 . 837 . 281 810 Parts 512 | 14 46 19 . 16 49 104 42 29 68 30 6 7 . 34 . 10 38 Haulers Intercepted 13 | . 1 . . . 5 5 . 1 . 1 . . . . . . . Recyclers Shooed 6 | . 2 . . . 1 2 . . . . . . . . . . 1 Parts Field Recycled . | . . . . . . . . . . . . . . . . . . Retrieved Matter . | . . . . . . . . . . . . . . . . . . Parts Self-Destructed 41 | . . . . . . . . . . . 3 1 . 37 . . . Prevented . | . . . . . . . . . . . . . . . . . . Parts Restored . | . . . . . . . . . . . . . . . . . . Kills | -11 -10 -10 -10 -9 -8 -8 -8 -7 -7 -7 -7 -7 -7 -6 -6 -6 -5 ------- Run | Yrd Mat Min Exi Min Mat Sto Gar Fac Gar Fac Low Low Dat Pro Fac DSF Fac Combat Hostiles Destroyed 184 | . 16 9 . 9 11 24 21 14 24 6 4 7 . 19 . 8 12 Guns 95 | . 7 1 . 4 10 19 14 5 9 3 4 1 . 7 . 2 9 Cannons 39 | . 3 2 . 1 1 1 5 6 9 . . 1 . 6 . 2 2 AOE 50 | . 6 6 . 4 . 4 2 3 6 3 . 5 . 6 . 4 1 Classes Destroyed 21 | 2 6 1 . . 3 1 1 1 . 1 1 1 . 2 . . 1 Worker 14 | . 2 1 . . 5 3 . 2 . . . . . . . . 1 Builder 15 | . . 2 . 1 1 8 . . . 2 . . . . . . 1 Tunneler 9 | 7 . 1 . . 1 . . . . . . . . . . . . Hauler 13 | . 1 . . . 5 5 . 1 . 1 . . . . . . . Recycler 14 | 1 1 2 . . 1 8 . 1 . . . . . . . . . Minesweeper 1 | . . . . . . . . . . . . . . 1 . . . Mechanic 1 | . . . . . . . . . . 1 . . . . . . . Operator 5 | . 1 . . . 2 1 . . 1 . . . . . . . . Drone 1 | . . . . . . . . . . . . . . 1 . . . Watcher 4 | . 1 . . . . 1 1 . . 1 . . . . . . . Swarmer 38 | . 3 7 . 7 . 5 . . 6 1 . 1 . 4 . 4 . Cutter 5 | . . . . . . . 3 . 2 . . . . . . . . Grunt 91 | . 13 2 . 2 6 10 15 4 14 3 2 5 . 8 . 2 5 Brawler 3 | . . . . . . 1 1 . . . 1 . . . . . . Duelist 7 | . . . . . 1 1 . . . . . . . 4 . 1 . Sentry 21 | . . . . . 2 6 2 6 1 . . 1 . 2 . . 1 Specialist 1 | . . . . . . . . . . . . . . . . . 1 Hunter 5 | . . . . . 2 1 . 1 1 . . . . . . . . Programmer 11 | . . . . . . . . 3 . 2 . . . . . 1 5 Samaritan 2 | . . . . . . . . . . . . 2 . . . . . Mutant 1 | . . . . . . . . . . . 1 . . . . . . Best Kill Streak 16 | 3 5 8 . 5 5 16 3 7 6 4 3 4 . 5 . 4 9 Combat Bots Only 7 | . 3 6 . 4 2 4 3 6 6 3 3 4 . 5 . 4 7 Max Kills in Single Turn 5 | 1 5 2 . 4 1 3 2 2 3 4 1 2 . 2 . 4 2 Gunslinging 1 | . . . . . . 1 . . . . . . . . . . . Exploded 4 | . 3 1 . 3 . 2 2 2 3 3 . 2 . 2 . 4 1 Melee . | . . . . . . . . . . . . . . . . . . Uniques/NPCs Destroyed . | . . . . . . . . . . . . . . . . . . Combat | -11 -10 -10 -10 -9 -8 -8 -8 -7 -7 -7 -7 -7 -7 -6 -6 -6 -5 -------- Run | Yrd Mat Min Exi Min Mat Sto Gar Fac Gar Fac Low Low Dat Pro Fac DSF Fac Hostile Shots Fired 1293 | . 72 58 . 29 66 86 50 238 112 19 19 38 . 105 . 25 376 Missed 373 | . 19 23 . 11 20 30 16 98 25 6 1 15 . 34 . 6 69 Hits 920 | . 53 35 . 18 46 56 34 140 87 13 18 23 . 71 . 19 307 Melee 13 | . . . . . . 4 5 . . . 1 . . 2 . . 1 Projectile 907 | . 53 35 . 18 46 52 29 140 87 13 17 23 . 69 . 19 306 AOE 5 | . . . . . . . 3 . 2 . . . . . . . . Critical Strikes 23 | . 1 1 . . . 2 3 1 3 . 1 . . 4 . . 7 Actively Blocked 5 | . . . . . . . . . . . . . . . . . 5 Damage Taken 13003 | . 682 343 . 140 725 828 624 1168 1336 193 279 225 . 1162 . 314 4984 Core 2007 | . 128 64 . 21 109 54 48 194 158 . 22 38 . 120 . 48 1003 Absorbed by Shields 16 | . . . . . . . 16 . . . . . . . . . . Reduced by Siege Mode 522 | . . . . . . . . . 32 4 26 37 . 137 . 10 276 Core Remaining (%) 58 | 100 . . . 14 . . 61 . . . . . . 24 . 94 . Volleys Fired 676 | 28 93 28 . 13 69 71 71 50 71 34 12 21 . 68 2 10 35 Largest 4 | 2 2 2 . 2 3 3 3 3 3 3 3 3 . 3 1 4 4 Hottest 212 | 40 60 50 . 86 154 119 143 143 125 143 88 182 . 143 85 212 199 Shots Fired 1485 | 56 183 48 . 21 199 182 157 112 131 65 36 35 . 140 2 34 84 Gun 1134 | 56 159 20 . 14 193 165 110 71 90 47 36 18 . 72 . 24 59 Cannon 298 | . 21 20 . 2 6 13 45 36 33 18 . 11 . 59 2 8 24 Launcher 53 | . 3 8 . 5 . 4 2 5 8 . . 6 . 9 . 2 1 Special . | . . . . . . . . . . . . . . . . . . Kinetic 1039 | 56 175 40 . 8 109 142 87 77 94 47 36 11 . 72 . 22 63 Thermal 388 | . . . . 8 90 36 68 30 29 18 . 18 . 59 2 10 20 Explosive 48 | . 3 8 . 5 . . 1 5 8 . . 6 . 9 . 2 1 Electromagnetic 10 | . 5 . . . . 4 1 . . . . . . . . . . Robot Hit Streak 30 | 9 25 5 . 3 14 15 8 8 13 6 26 29 . 30 . 7 12 Robot Miss Streak 7 | 2 4 7 . 3 3 5 7 3 6 3 1 . . 6 . 3 4 Penetration Max 1 | . . . . . 1 1 1 . . . . . . 1 . . 1 Secondary Targets 10 | . 1 . . . 1 2 . . 2 . 2 . . . . . 2 Max Gunslinging Chain 1 | . 1 . . . 1 1 . . 1 . 1 . . . . . 1 Shots Hit Robots 899 | 40 122 24 . 8 134 104 66 62 113 27 32 24 . 71 . 23 49 Core Hits 481 | 16 50 22 . 11 46 62 33 40 66 13 10 17 . 40 . 20 35 Critical Kills 10 | . 1 . . . 1 . . . . 1 . 1 . . . . 6 Critical Parts Destroyed 14 | . 1 . . . 1 4 1 . 1 . . . . 2 . . 4 Critical Strikes 55 | . 2 2 . 1 13 6 8 1 8 1 . 1 . 2 . . 10 Burn 18 | . . . . 1 11 2 3 1 . . . . . . . . . Destroy 24 | . 2 . . . 2 4 1 . 1 1 . 1 . 2 . . 10 Blast 11 | . . 2 . . . . 4 . 5 . . . . . . . . Sever 2 | . . . . . . . . . 2 . . . . . . . . Melee Attacks 61 | . . . . . 6 . . . 41 . . . . . 10 . 4 Impact . | . . . . . . . . . . . . . . . . . . Slashing 54 | . . . . . 6 . . . 34 . . . . . 10 . 4 Piercing . | . . . . . . . . . . . . . . . . . . Sneak Attacks 7 | . . . . . . . . . 7 . . . . . . . . Combat Hostiles . | . . . . . . . . . . . . . . . . . . Follow-up Attacks . | . . . . . . . . . . . . . . . . . . Damage Inflicted 25591 | 324 1500 936 . 280 2486 3252 1860 1926 4876 1186 632 1066 . 2528 . 927 1812 Guns 13456 | 324 935 164 . 98 2399 2236 1057 927 1182 565 632 311 . 991 . 393 1242 Cannons 3871 | . 227 158 . 20 59 189 567 496 791 121 . 62 . 778 . 182 221 Explosions 5817 | . 317 556 . 162 . 815 236 463 750 485 . 693 . 759 . 352 229 Melee 2273 | . . . . . . . . . 2153 . . . . . . . 120 Ramming 174 | . 21 58 . . 28 12 . 40 . 15 . . . . . . . Kinetic 12827 | 324 1109 322 . 58 1311 1924 1048 981 1601 565 632 199 . 991 . 395 1367 Thermal 5120 | . . . . 60 1147 689 576 442 372 606 . 174 . 778 . 180 96 Explosive 4406 | . 317 556 . 162 . . 163 425 750 . . 693 . 759 . 352 229 Electromagnetic 791 | . 53 . . . . 627 73 38 . . . . . . . . . Impact . | . . . . . . . . . . . . . . . . . . Slashing 2273 | . . . . . . . . . 2153 . . . . . . . 120 Piercing . | . . . . . . . . . . . . . . . . . . Highest Corruption 12 | . . . . . 2 2 2 1 1 1 1 1 1 1 . . 12 Average Corruption 1 | . . . . . 2 2 2 1 1 1 1 1 1 1 . . 7 Corruption Purged . | . . . . . . . . . . . . . . . . . . Corruption Blocked . | . . . . . . . . . . . . . . . . . . Effects 114 | . . . . . 21 18 29 5 13 10 5 3 2 6 . . 2 Message Errors 20 | . . . . . 3 2 3 2 4 2 . 2 . 1 . . 1 Matter Fused 30 | . . . . . 8 5 6 . 3 4 2 1 . 1 . . . Heat Flow Errors 13 | . . . . . 3 3 4 1 . . . . . 2 . . . Energy Discharges 21 | . . . . . 2 4 9 . 3 1 1 . . 1 . . . Parts Fused 2 | . . . . . . 1 . . . 1 . . . . . . . Data Loss (minor) 15 | . . . . . 2 1 5 . 2 1 2 . 1 1 . . . Data Loss (major) 3 | . . . . . 1 . . 1 1 . . . . . . . . Misfires 3 | . . . . . . 1 . 1 . 1 . . . . . . . Alerts 2 | . . . . . . . . . . . . . 1 . . . 1 Weapon Failures 5 | . . . . . 2 1 2 . . . . . . . . . . Overload Shots . | . . . . . . . . . . . . . . . . . . Overflow Damage 495 | . . 19 . 10 . 46 3 15 87 149 . 106 . 56 . . 4 Projectiles 109 | . . . . . . . . 15 40 5 . . . 49 . . . Explosions 339 | . . 19 . 10 . 46 3 . . 144 . 106 . 7 . . 4 Melee 47 | . . . . . . . . . 47 . . . . . . . . Knockbacks 22 | . 3 2 . . 1 3 7 . 3 1 . . . . . 1 1 Impact 2 | . . 1 . . . . . . . 1 . . . . . . . Kinetic 19 | . 3 1 . . 1 3 6 . 3 . . . . . . 1 1 Secondary 1 | . . . . . . . 1 . . . . . . . . . . Self-Inflicted Damage 229 | . 16 8 . . 14 16 49 . 71 . . . . 18 . . 37 Shots 11 | . 1 1 . . . 3 2 . 2 . . . . 1 . . 1 Rammed 14 | . 2 6 . . 1 2 . . . 3 . . . . . . . Targets Rammed 20 | . 4 7 . . 1 3 . 2 . 3 . . . . . . . Kicked 4 | . 2 . . . . . . 2 . . . . . . . . . Crushed 2 | . . 1 . . . 1 . . . . . . . . . . . Highest Temperature 555 | . 96 38 . 90 334 227 307 369 256 134 125 153 . 555 52 196 309 Average Temperature 67 | . 17 25 . 42 73 44 64 104 96 34 56 60 . 69 30 104 69 Received Heat Transfer 3482 | . 363 63 . 6 315 279 261 264 444 . 181 66 . 388 . 72 780 Effects 5 | . . . . . . . . 3 . . . . . 2 . . . Shutdowns 2 | . . . . . . . . 1 . . . . . 1 . . . Energy Bleed 2 | . . . . . . . . 2 . . . . . . . . . Matter Decay 1 | . . . . . . . . . . . . . . 1 . . . Siege Activations 15 | . . . . . . . . . 2 2 2 2 . 4 . 1 2 Total Turns 237 | . . . . . . . . . 34 11 30 26 . 92 . 8 36 Longest Duration 34 | . . . . . . . . . 21 9 15 20 . 34 . 8 26 Martial Activations . | . . . . . . . . . . . . . . . . . . Shielding Activations . | . . . . . . . . . . . . . . . . . . Robots Disrupted . | . . . . . . . . . . . . . . . . . . Combat Hostiles . | . . . . . . . . . . . . . . . . . . Robots Corrupted 2 | . . . . . . 2 . . . . . . . . . . . Combat Hostiles . | . . . . . . . . . . . . . . . . . . Parts Fried 6 | . . . . . . 6 . . . . . . . . . . . Impact Corruptions . | . . . . . . . . . . . . . . . . . . Robots Melted . | . . . . . . . . . . . . . . . . . . Combat Hostiles . | . . . . . . . . . . . . . . . . . . Parts Melted 10 | . . . . . 7 . 1 . 1 . . . . 1 . . . Heat Transferred 9930 | . . . . 222 3108 1410 1301 1050 800 448 . 296 . 925 . 296 74 Parts Sabotaged 4 | . . . . . . . . . . . . . . . . . 4 Parts Stolen . | . . . . . . . . . . . . . . . . . . Parts Stripped . | . . . . . . . . . . . . . . . . . . Power Chain Reactions 2 | . . . . . . 2 . . . . . . . . . . . Alert | -11 -10 -10 -10 -9 -8 -8 -8 -7 -7 -7 -7 -7 -7 -6 -6 -6 -5 ------- Run | Yrd Mat Min Exi Min Mat Sto Gar Fac Gar Fac Low Low Dat Pro Fac DSF Fac Maximum Alert Level 5 | . . 1 . . . 2 4 3 5 4 . . . . 2 2 1 Low Security (%) 45 | 100 100 91 . 100 100 53 . . . . . . . . . . 68 Level 1 5 | . . 8 . . . 19 3 . . . . . . . 7 67 31 Level 2 18 | . . . . . . 27 20 94 11 12 . . . . 92 32 . Level 3 17 | . . . . . . . 43 5 45 51 . . . . . . . Level 4 12 | . . . . . . . 32 . 39 35 . . . . . . . Level 5 . | . . . . . . . . . 3 . . . . . . . . High Security . | . . . . . . . . . . . . . . . . . . Max Security . | . . . . . . . . . . . . . . . . . . Sterilizations 1 | . . . . . . . . . . . . . . . . 1 . Peak Influence 1803 | 10 167 232 . 98 108 501 1344 717 1803 1230 . . . . 518 498 305 Initial 946 | . 6 28 . . 14 37 303 705 497 946 . . . . 513 271 261 Average 480 | 1 92 81 . 31 34 243 935 613 1084 954 . . . . 460 372 164 Influence Increases 8409 | 40 567 385 . 243 523 854 1121 541 1396 937 70 150 . 528 465 227 362 Destroy 0b10 Robot/C 4020 | . 320 220 . 180 220 480 520 280 540 220 60 140 . 440 . 160 240 Destroy 0b10 Robot/NC 455 | 40 30 30 . 5 75 130 5 20 45 50 . . . 15 . . 10 Destroy Leader 674 | . 84 40 . 30 80 132 20 72 30 76 10 10 . 30 . 30 30 Allied During Kill 141 | . . 8 . . . . 15 . 37 38 . . . 43 . . . Successful Hack 191 | . 18 . . . 19 25 22 21 . 86 . . . . . . . Select Force Hacks 180 | . 60 . . . 30 30 . 60 . . . . . . . . . Disable Machine 705 | . 15 30 . . 45 30 15 45 60 420 . . . . 15 15 15 Anti-Garrison Action 950 | . . . . . . . 350 . 600 . . . . . . . . Destroy Structure 388 | . 25 27 . 13 9 12 84 28 69 47 . . . . . 22 52 Advance Influence 450 | . . . . . . . . . . . . . . . 450 . . Lose Combat Pursuer 255 | . 15 30 . 15 45 15 90 15 15 . . . . . . . 15 Influence Decreases 8284 | 30 502 354 106 206 470 477 244 1175 303 1565 666 431 298 428 177 117 735 Entered New Map 3342 | . 4 47 106 . 23 53 164 639 213 857 436 111 298 . 37 117 237 Time Decay 4212 | 30 488 297 . 206 447 404 . 506 . 538 230 310 . 338 140 . 278 Lost Part 390 | . 10 10 . . . 20 40 20 30 . . 10 . 30 . . 220 Lost Ally 190 | . . . . . . . 40 10 60 20 . . . 60 . . . Purge Threat 150 | . . . . . . . . . . 150 . . . . . . . Squads Dispatched 40 | . 4 . . 1 9 6 . 9 . 6 . . . 1 . 2 2 Investigation 11 | . 3 . . . 4 1 . 3 . . . . . . . . . Extermination 7 | . . . . . . . . 3 . 3 . . . . . . 1 Reinforcement 10 | . 1 . . 1 3 2 . . . . . . . . . 2 1 Assault 3 | . . . . . 2 . . . . . . . . 1 . . . Garrison 9 | . . . . . . 3 . 3 . 3 . . . . . . . Intercept . | . . . . . . . . . . . . . . . . . . Searches Triggered . | . . . . . . . . . . . . . . . . . . Construction Impeded 2 | . . . . 1 . 1 . . . . . . . . . . . Haulers Reinforced . | . . . . . . . . . . . . . . . . . . Active Scanning Responses . | . . . . . . . . . . . . . . . . . . Cargo Convoy Interrupts 1 | . . . . . . . . . . . . . . . . . 1 Stealth | -11 -10 -10 -10 -9 -8 -8 -8 -7 -7 -7 -7 -7 -7 -6 -6 -6 -5 --------- Run | Yrd Mat Min Exi Min Mat Sto Gar Fac Gar Fac Low Low Dat Pro Fac DSF Fac Distress Signals 10 | . 1 . . . 3 2 . . . . . . . 2 . . 2 Communications Jammed . | . . . . . . . . . . . . . . . . . . Distress Signals . | . . . . . . . . . . . . . . . . . . Times Spotted 250 | . 30 10 . 9 23 34 26 17 28 11 4 5 . 23 . 8 22 Peak Tracking Total 12 | . 4 6 . 4 3 5 5 5 7 2 3 4 . 8 . 4 12 Tactical Retreats 16 | . 1 2 . 1 3 1 5 1 1 . . . . . . . 1 Traps | -11 -10 -10 -10 -9 -8 -8 -8 -7 -7 -7 -7 -7 -7 -6 -6 -6 -5 ------- Run | Yrd Mat Min Exi Min Mat Sto Gar Fac Gar Fac Low Low Dat Pro Fac DSF Fac Traps Triggered 5 | . 1 . . . 1 . 3 . . . . . . . . . . Indirectly 1 | . . . . . . . 1 . . . . . . . . . . Trap Hack Attempts . | . . . . . . . . . . . . . . . . . . Triggered . | . . . . . . . . . . . . . . . . . . Disarmed . | . . . . . . . . . . . . . . . . . . Reprogrammed . | . . . . . . . . . . . . . . . . . . Reused . | . . . . . . . . . . . . . . . . . . Traps Extracted . | . . . . . . . . . . . . . . . . . . Installed . | . . . . . . . . . . . . . . . . . . Triggered . | . . . . . . . . . . . . . . . . . . Machines | -11 -10 -10 -10 -9 -8 -8 -8 -7 -7 -7 -7 -7 -7 -6 -6 -6 -5 ---------- Run | Yrd Mat Min Exi Min Mat Sto Gar Fac Gar Fac Low Low Dat Pro Fac DSF Fac Machines Disabled 61 | . 1 2 . . 3 2 6 3 11 28 . . . 2 1 1 1 Max in Single Turn 11 | . 1 1 . . 1 1 1 1 4 11 . . . 1 1 1 1 Garrison Access 1 | . . . . . 1 . . . . . . . . . . . . Garrison Relay 11 | . . . . . . . 5 . 6 . . . . . . . . Machines Repaired . | . . . . . . . . . . . . . . . . . . Machines Dismantled . | . . . . . . . . . . . . . . . . . . Machines Sabotaged . | . . . . . . . . . . . . . . . . . . Overloaded Fab Kills . | . . . . . . . . . . . . . . . . . . Hacking | -11 -10 -10 -10 -9 -8 -8 -8 -7 -7 -7 -7 -7 -7 -6 -6 -6 -5 --------- Run | Yrd Mat Min Exi Min Mat Sto Gar Fac Gar Fac Low Low Dat Pro Fac DSF Fac Machines Accessed 54 | . 7 . 1 1 10 7 5 10 1 7 . . 3 . 2 . . Terminals 33 | . 5 . . . 6 5 5 5 1 5 . . . . 1 . . Fabricators 3 | . . . . . . . . 2 . 1 . . . . . . . Repair Stations 1 | . . . . . 1 . . . . . . . . . . . . Recycling Units 8 | . 2 . . . 1 1 . 2 . 1 . . . . 1 . . Scanalyzers 2 | . . . . . 2 . . . . . . . . . . . . Garrison Access 2 | . . . . . . 1 . 1 . . . . . . . . . Total Hacks 165 | . 21 . 1 1 33 18 8 26 2 29 . . 20 . 6 . . Successful 116 | . 16 . 1 1 25 11 5 18 . 18 . . 20 . 1 . . Failed 49 | . 5 . . . 8 7 3 8 2 11 . . . . 5 . . Catastrophic 2 | . . . . . 2 . . . . . . . . . . . . Database Lockouts . | . . . . . . . . . . . . . . . . . . Manual 80 | . 17 . . . 15 11 . 15 . 22 . . . . . . . Terminals 110 | . 19 . . . 18 15 8 18 2 25 . . . . 5 . . Fabricators 6 | . . . . . . . . 4 . 2 . . . . . . . Repair Stations 3 | . . . . . 3 . . . . . . . . . . . . Recycling Units 9 | . 2 . . . 1 1 . 2 . 2 . . . . 1 . . Scanalyzers 11 | . . . . . 11 . . . . . . . . . . . . Garrison Access 4 | . . . . . . 2 . 2 . . . . . . . . . Terminal Hacks 58 | . 7 . 1 1 7 4 5 5 . 7 . . 20 . 1 . . Record 3 | . . . 1 . . . . . . . . . 2 . . . . Part Schematic 11 | . . . . . 1 . . . . . . . 10 . . . . Robot Schematic 6 | . 1 . . . . . . . . . . . 5 . . . . Robot Analysis 6 | . 3 . . . 2 . . . . 1 . . . . . . . Prototype ID Bank 8 | . 1 . . . 1 1 . 1 . 1 . . 3 . . . . Open Door 4 | . . . . 1 . 2 1 . . . . . . . . . . Open DSF 1 | . . . . . . . . . . . . . . . 1 . . Branch Access Points 2 | . . . . . . . . 1 . 1 . . . . . . . Emergency Access Points 1 | . . . . . . . 1 . . . . . . . . . . Terminal Index 5 | . 1 . . . 1 1 . 1 . 1 . . . . . . . Fabricator Index 1 | . . . . . . . . . . 1 . . . . . . . Alert Level 3 | . . . . . 1 . . 1 . 1 . . . . . . . Unreport Threat 1 | . . . . . . . . . . 1 . . . . . . . Locate Traps 2 | . . . . . 1 . . 1 . . . . . . . . . Zone Layout 1 | . 1 . . . . . . . . . . . . . . . . Garrison Registry 1 | . . . . . . . 1 . . . . . . . . . . Patrol Navigation 1 | . . . . . . . 1 . . . . . . . . . . Security Stations 1 | . . . . . . . 1 . . . . . . . . . . Fabricator Hacks 5 | . . . . . . . . 3 . 2 . . . . . . . Network Status 2 | . . . . . . . . 1 . 1 . . . . . . . Load Schematic 1 | . . . . . . . . 1 . . . . . . . . . Build 2 | . . . . . . . . 1 . 1 . . . . . . . Repair Station Hacks 1 | . . . . . 1 . . . . . . . . . . . . Scan Component 1 | . . . . . 1 . . . . . . . . . . . . Recycling Unit Hacks 2 | . . . . . . . . . . 2 . . . . . . . Retrieve Components 2 | . . . . . . . . . . 2 . . . . . . . Scanalyzer 11 | . . . . . 11 . . . . . . . . . . . . Insert Component 4 | . . . . . 4 . . . . . . . . . . . . Analyze 6 | . . . . . 6 . . . . . . . . . . . . Retrieve Study 1 | . . . . . 1 . . . . . . . . . . . . Garrison Access Hacks 2 | . . . . . . 1 . 1 . . . . . . . . . Unlock Access 2 | . . . . . . 1 . 1 . . . . . . . . . Unauthorized Hacks 37 | . 9 . . . 6 6 . 9 . 7 . . . . . . . Terminals 31 | . 7 . . . 5 5 . 7 . 7 . . . . . . . Assimilate 1 | . . . . . . . . 1 . . . . . . . . . Botnet 9 | . 1 . . . 2 2 . 2 . 2 . . . . . . . Operators 2 | . 1 . . . 1 . . . . . . . . . . . . Skim 19 | . 5 . . . 2 3 . 4 . 5 . . . . . . . Fabricators . | . . . . . . . . . . . . . . . . . . Repair Stations . | . . . . . . . . . . . . . . . . . . Recycling Units 6 | . 2 . . . 1 1 . 2 . . . . . . . . . Tunnel 6 | . 2 . . . 1 1 . 2 . . . . . . . . . Scanalyzers . | . . . . . . . . . . . . . . . . . . Garrison Access . | . . . . . . . . . . . . . . . . . . Data Cores Recovered . | . . . . . . . . . . . . . . . . . . Used . | . . . . . . . . . . . . . . . . . . Hacking Detections 33 | . 5 . . . 8 4 1 8 1 4 . . . . 2 . . Full Trace Events 3 | . . . . . 2 . . 1 . . . . . . . . . Feedback Events . | . . . . . . . . . . . . . . . . . . Feedback Blocked . | . . . . . . . . . . . . . . . . . . Robot Schematics Acquired 6 | . 1 . . . . . . . . . . . 5 . . . . Robots Built . | . . . . . . . . . . . . . . . . . . Authchips . | . . . . . . . . . . . . . . . . . . Time . | . . . . . . . . . . . . . . . . . . Total Robot Build Rating . | . . . . . . . . . . . . . . . . . . Part Schematics Acquired 15 | . . . . . 5 . . . . . . . 10 . . . . Parts Built 1 | . . . . . . . . 1 . . . . . . . . . Authchips . | . . . . . . . . . . . . . . . . . . Time 321 | . . . . . . . . 204 . 117 . . . . . . . Total Part Build Rating 8 | . . . . . . . . 8 . . . . . . . . . Part Studies Acquired 1 | . . . . . 1 . . . . . . . . . . . . Parts Repaired . | . . . . . . . . . . . . . . . . . . Time . | . . . . . . . . . . . . . . . . . . Parts Recycled . | . . . . . . . . . . . . . . . . . . Recycled Matter . | . . . . . . . . . . . . . . . . . . Retrieved Matter . | . . . . . . . . . . . . . . . . . . Retrieved Components 9 | . . . . . . . . . . 9 . . . . . . . Parts Scanalyzed 4 | . . . . . 4 . . . . . . . . . . . . Part Schematics Acquired 4 | . . . . . 4 . . . . . . . . . . . . Parts Damaged . | . . . . . . . . . . . . . . . . . . Bothacking | -11 -10 -10 -10 -9 -8 -8 -8 -7 -7 -7 -7 -7 -7 -6 -6 -6 -5 ------------ Run | Yrd Mat Min Exi Min Mat Sto Gar Fac Gar Fac Low Low Dat Pro Fac DSF Fac Used RIF Installer . | . . . . . . . . . . . . . . . . . . Robots Hacked . | . . . . . . . . . . . . . . . . . . Non-combat . | . . . . . . . . . . . . . . . . . . Combat . | . . . . . . . . . . . . . . . . . . Robot Hacks Applied . | . . . . . . . . . . . . . . . . . . Relay Couplers Released 45 | . . . . . 2 . 20 . 23 . . . . . . . . Machine Destruction 45 | . . . . . 2 . 20 . 23 . . . . . . . . Fabnet Peak Effective % . | . . . . . . . . . . . . . . . . . . Robots Rewired 8 | . . . . . . . . . 6 . . . . 2 . . . Allies Hacked . | . . . . . . . . . . . . . . . . . . Hacks Repelled . | . . . . . . . . . . . . . . . . . . Allies | -11 -10 -10 -10 -9 -8 -8 -8 -7 -7 -7 -7 -7 -7 -6 -6 -6 -5 -------- Run | Yrd Mat Min Exi Min Mat Sto Gar Fac Gar Fac Low Low Dat Pro Fac DSF Fac Total Allies 14 | . . 2 . . . . 2 1 6 . . . . 3 . . . Largest Group 6 | . . 2 1 . . . 2 1 6 3 . . . 3 . . . Highest-Rated Group 148 | . . 51 31 . . . 64 10 132 96 . . . 148 . . . Highest-Rated Ally 96 | . . 31 31 . . . 39 10 32 32 . . . 96 . . . Initial Warlord ECA Mod 27 | . . . . . . . . 8 8 19 19 19 19 18 18 18 27 Total Orders . | . . . . . . . . . . . . . . . . . . Ally Attacks 89 | . . 2 . . . . 22 . 17 23 . . . 25 . . . Total Damage 2597 | . . 49 . . . . 366 . 298 1137 . . . 747 . . . Kills 27 | . . 2 . . . . 5 . 3 12 . . . 5 . . . Allies Corrupted . | . . . . . . . . . . . . . . . . . . Allies Melted . | . . . . . . . . . . . . . . . . . . Intel | -11 -10 -10 -10 -9 -8 -8 -8 -7 -7 -7 -7 -7 -7 -6 -6 -6 -5 ------- Run | Yrd Mat Min Exi Min Mat Sto Gar Fac Gar Fac Low Low Dat Pro Fac DSF Fac Active Infowar (turns) 6562 | 5 526 2 . . 333 . . 1022 . 1465 278 569 . 1143 280 407 532 Sensors 5636 | . . 2 . . . . . 1022 . 1465 278 569 . 1143 280 407 470 Terrain 237 | . . . . . . . . . . . . . . . . . 237 Seismic 2068 | 5 526 . . . 333 . . . . . . . . . 280 407 517 Machine Analysis 79 | . . . . . . . . . . 79 . . . . . . . Robot Analysis Total 6 | . 3 . . . 2 . . . . 1 . . . . . . . Derelict Logs Recovered 8 | . . 1 . 2 . . . . . . 2 2 . 1 . . . Drone Launches . | . . . . . . . . . . . . . . . . . . Drone Recoveries . | . . . . . . . . . . . . . . . . . . Exploration | -11 -10 -10 -10 -9 -8 -8 -8 -7 -7 -7 -7 -7 -7 -6 -6 -6 -5 ------------- Run | Yrd Mat Min Exi Min Mat Sto Gar Fac Gar Fac Low Low Dat Pro Fac DSF Fac Turns Passed 18121 | 219 1462 1852 376 763 1717 971 1779 1377 2100 1531 499 688 145 1352 280 407 603 Spaces Moved 9270 | 49 636 688 157 296 1315 476 988 952 1110 617 269 377 85 641 147 199 268 Core . | . . . . . . . . . . . . . . . . . . Treads 6214 | . 253 688 157 296 6 370 988 36 823 617 269 377 85 641 147 199 262 Legs 1641 | 49 383 . . . . . . 916 287 . . . . . . . 6 Wheels 1415 | . . . . . 1309 106 . . . . . . . . . . . Hover . | . . . . . . . . . . . . . . . . . . Flight . | . . . . . . . . . . . . . . . . . . Fastest Speed 100 | 120 120 160 240 240 100 100 152 112 125 160 160 160 160 160 160 160 160 Average Speed 155 | 120 167 239 240 240 102 140 155 117 151 160 160 160 160 160 160 160 161 Slowest Speed 320 | 120 320 240 240 240 240 232 232 156 200 160 160 160 160 160 160 160 270 Overloaded Moves . | . . . . . . . . . . . . . . . . . . Propulsion Burnouts . | . . . . . . . . . . . . . . . . . . Robots Hopped . | . . . . . . . . . . . . . . . . . . Potential Cave-ins . | . . . . . . . . . . . . . . . . . . Cave-ins Triggered . | . . . . . . . . . . . . . . . . . . Exploration Rate (%) 55 | 4 72 98 50 80 90 56 89 19 78 24 41 45 68 76 3 90 10 Regions Visited 17 Branch Regions 8 Pre-discovered Areas 17 | . 3 2 1 . 1 2 . 2 . 1 2 2 1 . . . . Known Exits Taken 10 | . . . 1 . 1 1 . 1 . 1 1 1 1 1 1 . . Unknown Exits Taken 4 | 1 1 1 . 1 . . . . . . . . . . . . . Scrap Searched 8 | . . 2 . 3 . . . . . . 1 1 . 1 . . . Spaces Dug 35 | . . . . . 5 1 . 2 . 8 . 2 . 8 . . 9 Terrain Destroyed 460 | . 35 38 . 15 6 11 17 45 53 42 2 28 . 117 . 24 27 Melee 5 | . . . . . 5 . . . . . . . . . . . . Projectile 112 | . . . . . 1 7 3 7 10 14 2 10 . 35 . 2 21 AOE 343 | . 35 38 . 15 . 4 14 38 43 28 . 18 . 82 . 22 6 Terrain Rammed . | . . . . . . . . . . . . . . . . . . Walls Destroyed . | . . . . . . . . . . . . . . . . . . Machines Disabled . | . . . . . . . . . . . . . . . . . . Actions | -11 -10 -10 -10 -9 -8 -8 -8 -7 -7 -7 -7 -7 -7 -6 -6 -6 -5 --------- Run | Yrd Mat Min Exi Min Mat Sto Gar Fac Gar Fac Low Low Dat Pro Fac DSF Fac Total 11725 | 164 875 833 157 329 1542 640 1108 1131 1343 1105 309 428 93 845 175 280 368 Wait 1064 | 86 98 88 . 8 43 41 21 56 40 427 20 21 . 94 . 8 13 Move 9250 | 48 635 687 156 295 1314 475 985 951 1108 616 268 376 84 640 146 198 268 Hop . | . . . . . . . . . . . . . . . . . . Pick Up 149 | 1 15 16 1 5 34 6 6 19 10 3 . 1 . 1 4 23 4 Fast Attach 59 | 1 1 2 . . 8 10 6 . 11 3 2 . 3 6 . 1 5 Attach 47 | . 1 1 . 2 5 3 1 4 3 . . 1 . 3 5 2 16 Detach 11 | . . . . . 3 1 . . 1 1 . . . . 2 1 2 Swap 191 | . 15 2 . 3 16 16 7 29 24 13 5 8 3 19 4 13 14 Drop 178 | . 13 2 . 3 43 14 9 20 25 5 2 . 3 6 2 24 7 Fire 676 | 28 93 28 . 13 69 71 71 50 71 34 12 21 . 68 2 10 35 Melee 61 | . . . . . 6 . . . 41 . . . . . 10 . 4 Ram 1 | . . . . . 1 . . . . . . . . . . . . Kick 4 | . 2 . . . . . . 2 . . . . . . . . . Crush 15 | . 2 7 . . . 3 . . . 3 . . . . . . . Escape Stasis 1 | . . . . . . . . . 1 . . . . . . . . Rewire 18 | . . . . . . . 2 . 8 . . . . 8 . . . Trap . | . . . . . . . . . . . . . . . . . . Miscellaneous . | . . . . . . . . . . . . . . . . . . Route ------- -11/Scrapyard -10/Materials (discovered 5 exits: [*Mat x3] / [*Min] / Sub) -10/Mines (discovered 3 exits: [*Mat x2] / *Exi) -10/Exiles (discovered 2 exits: *Min x2) -9/Mines -8/Materials (discovered 4 exits: *Fac x2 / *Sto x2) -8/Storage -8/Garrison (discovered 3 exits: *Fac x3) -7/Factory (discovered 3 exits: Low x2 / Gar) -7/Garrison (discovered 3 exits: *Fac x3) -7/Factory (discovered 3 exits: *Fac / *Low x2) -7/Lower Caves -7/Lower Caves -7/Data Miner -6/Proximity Caves -6/Factory -6/DSF -5/Factory (discovered 2 exits: Upp / Ext) History --------- Turn | Location | Event 25 | -11/Scrapyard | Discovered new exit (range 3) 220 | -11/Scrapyard | Entered Materials 292 | -10/Materials | Discovered new exit (range 7) 321 | -10/Materials | Build established: Mutant 359 | -10/Materials | Discovered new exit (range 12) 693 | -10/Materials | Discovered new exit (range 11) 919 | -10/Materials | Discovered new exit (range 14) 1291 | -10/Materials | Core integrity fell below 50% 1306 | -10/Materials | Loaded intel: 2 recycling unit locations 1365 | -10/Materials | Identified exit to Subcaves 1480 | -10/Materials | Learned Storage trap positions 1682 | -10/Materials | Entered Mines 1792 | -10/Mines | Learned location of Storage (-8) 1825 | -10/Mines | Found a damaged Exp. Sensor Array with a note attached 1830 | -10/Mines | Found Prototype Device 1852 | -10/Mines | Identified Exp. Sensor Array 2423 | -10/Mines | Discovered new exit (range 6) 2866 | -10/Mines | Discovered new exit (range 9) 3522 | -10/Mines | Deemed a non-threat by the Exiles lab entrance 3525 | -10/Mines | Discovered new exit (range 5) 3534 | -10/Mines | Entered Exiles 3534 | -10/Exiles | Accompanied by 1 ally 3535 | -10/Exiles | Identified exit to Mines 3564 | -10/Exiles | Led the pair of lost Derelicts to a safe place 3594 | -10/Exiles | Met 8R-AWN 3633 | -10/Exiles | Met EX-HEX 3736 | -10/Exiles | Met EX-DEC 3750 | -10/Exiles | Learned location of Zion (-6) 3910 | -10/Exiles | Entered Mines 4074 | -9/Mines | Learned Materials emergency access door positions 4244 | -9/Mines | Found a hidden stash of uninstalled traps 4326 | -9/Mines | Received a Rocket Launcher from a helpful Derelict 4445 | -9/Mines | Found the Drone Emporium 4561 | -9/Mines | Core integrity fell below 20% 4645 | -9/Mines | Discovered new exit (range 15) 4673 | -9/Mines | Entered Materials 4673 | -8/Materials | Evolved 4 slots: Propulsion x2, Utility x1, Weapon x1 4674 | -8/Materials | Identified exit to Storage 4972 | -8/Materials | Build established: Gunner 5267 | -8/Materials | Met 7R-MNS 5609 | -8/Materials | Discovered new exit (range 7) 5680 | -8/Materials | Build established: Scavenger-Gunner 6005 | -8/Materials | Discovered new exit (range 10) 6390 | -8/Materials | Entered Storage 6391 | -8/Storage | Loaded intel: 18 trap records 6718 | -8/Storage | Identified exit to Garrison 6725 | -8/Storage | Learned location of Armory (-4) 6817 | -8/Storage | Garrison activated, responded to threat 7361 | -8/Storage | Entered Garrison 7385 | -8/Garrison | Triggered checkpoint 7418 | -8/Garrison | Garrison Relay disabled 7585 | -8/Garrison | Triggered checkpoint 7656 | -8/Garrison | Garrison Relay disabled 7843 | -8/Garrison | Discovered new exit (range 14) 7887 | -8/Garrison | Learned Factory security intel 7919 | -8/Garrison | Triggered checkpoint 7976 | -8/Garrison | Garrison Relay disabled 7989 | -8/Garrison | Triggered checkpoint 8082 | -8/Garrison | Triggered checkpoint 8194 | -8/Garrison | Discovered new exit (range 4) 8319 | -8/Garrison | Rescued a captive Derelict 8320 | -8/Garrison | Rescued a captive Derelict 8421 | -8/Garrison | Triggered checkpoint 8450 | -8/Garrison | Garrison Relay disabled 8553 | -8/Garrison | Triggered checkpoint 8639 | -8/Garrison | Discovered new exit (range 14) 8650 | -8/Garrison | Discovered new exit (range 43) 8650 | -8/Garrison | Discovered new exit (range 66) 8650 | -8/Garrison | Discovered new exit (range 12) 8669 | -8/Garrison | Triggered checkpoint 8701 | -8/Garrison | Garrison Relay disabled 8791 | -8/Garrison | Attempted to access garrison exit controls, blocked by remote lockdown 8925 | -8/Garrison | Attempted to access garrison exit controls, blocked by remote lockdown 9140 | -8/Garrison | Entered Factory 9140 | -7/Factory | Evolved 2 slots: Utility x2 9715 | -7/Factory | Identified exit to Lower Caves 9970 | -7/Factory | Build established: Hacker-Skirmisher 9995 | -7/Factory | Identified exit to Garrison 10019 | -7/Factory | Garrison activated, responded to threat 10086 | -7/Factory | Fabricated Exp. Sensor Array? 10517 | -7/Factory | Entered Garrison 10577 | -7/Garrison | Triggered checkpoint 10614 | -7/Garrison | H-XX Assembler disabled 10691 | -7/Garrison | Garrison Relay disabled 10807 | -7/Garrison | Build established: Hacker-Tank 10839 | -7/Garrison | Triggered checkpoint 10876 | -7/Garrison | Discovered new exit (range 10) 10886 | -7/Garrison | Identified exit to Factory 10901 | -7/Garrison | Triggered checkpoint 10955 | -7/Garrison | Garrison Relay disabled 10959 | -7/Garrison | Triggered checkpoint 11573 | -7/Garrison | Triggered checkpoint 11620 | -7/Garrison | Garrison Relay disabled 11650 | -7/Garrison | Discovered exit to Factory (range 7) 11749 | -7/Garrison | Triggered checkpoint 12181 | -7/Garrison | Triggered checkpoint 12253 | -7/Garrison | Triggered checkpoint 12262 | -7/Garrison | Garrison Relay disabled 12379 | -7/Garrison | Attempted to access garrison exit controls, blocked by remote lockdown 12481 | -7/Garrison | Triggered checkpoint 12488 | -7/Garrison | Triggered checkpoint 12492 | -7/Garrison | Core integrity fell below 50% 12542 | -7/Garrison | Garrison Relay disabled 12579 | -7/Garrison | Garrison Relay disabled 12598 | -7/Garrison | Triggered checkpoint 12600 | -7/Garrison | Discovered exit to Factory (range 10) 12617 | -7/Garrison | Entered Factory 12617 | -7/Factory | Accompanied by 3 allies 12779 | -7/Factory | Discovered new exit (range 6) 13152 | -7/Factory | Build established: Hacker-Skirmisher 13164 | -7/Factory | Garrison activated, responded to threat 13805 | -7/Factory | Learned 2 Lower Caves zone layouts 13933 | -7/Factory | Learned Extension emergency access door positions 13981 | -7/Factory | Learned Extension emergency access door positions 14019 | -7/Factory | Learned 4 Upper Caves zone layouts 14047 | -7/Factory | Learned location of Upper Caves (-5) 14087 | -7/Factory | Learned location of 1 exit from Lower Caves 14139 | -7/Factory | Learned 2 Upper Caves zone layouts 14148 | -7/Factory | Entered Lower Caves 14149 | -7/Lower Caves | Identified exit to Lower Caves 14154 | -7/Lower Caves | Met a Warlord Commander 14155 | -7/Lower Caves | Learned location of Warlord (-5) 14156 | -7/Lower Caves | Warlord Commander delivered Encrypted Comm Array 14410 | -7/Lower Caves | Attacked by a delusional Derelict stockpiling parts 14647 | -7/Lower Caves | Entered another Lower Caves area 14648 | -7/Lower Caves | Spotted B-75 Beast 15234 | -7/Lower Caves | Discovered new exit (range 13) 15252 | -7/Lower Caves | Attracted the attention of an 0b10 checkpoint 15284 | -7/Lower Caves | Identified exit to Data Miner 15335 | -7/Lower Caves | Entered Data Miner 15335 | -7/Data Miner | Discovered new exit (range 6) 15347 | -7/Data Miner | Identified exit to Proximity Caves 15372 | -7/Data Miner | Met Data Miner 15399 | -7/Data Miner | Learned location of Section 7 (-3) 15399 | -7/Data Miner | Acquired the access code to Warlord's prototype stash 15422 | -7/Data Miner | Received God Mode back door access code from Data Miner 15480 | -7/Data Miner | Entered Proximity Caves 15842 | -6/Proximity Caves | Spotter reported a threat 15905 | -6/Proximity Caves | Spotter reported a threat 16073 | -6/Proximity Caves | Spotter reported a threat 16257 | -6/Proximity Caves | Attracted the attention of an 0b10 outpost 16275 | -6/Proximity Caves | Escorted by Enhanced Grunt 16404 | -6/Proximity Caves | Lost 3 allies 16638 | -6/Proximity Caves | Attracted the attention of an 0b10 checkpoint 16719 | -6/Proximity Caves | Lost 3 parts (1p1u1w) 16822 | -6/Proximity Caves | Discovered new exit (range 5) 16829 | -6/Proximity Caves | Identified exit to Factory 16832 | -6/Proximity Caves | Entered Factory 16832 | -6/Factory | Evolved 2 slots: Utility x1, Weapon x1 16988 | -6/Factory | Identified exit to DSF 17112 | -6/Factory | Entered DSF 17113 | -6/DSF | Joined Warlord attack on 0b10 via DSF 17129 | -6/DSF | Additional patrols routed to DSF 17233 | -6/DSF | Discovered new exit (range 14) 17293 | -6/DSF | Build established: Scavenger-Tank 17325 | -6/DSF | Identified exit to Factory 17467 | -6/DSF | Sterilization system engaged 17487 | -6/DSF | Ambient heat levels rising (+10) 17502 | -6/DSF | Ambient heat levels rising (+10) 17517 | -6/DSF | Ambient heat levels rising (+10) 17519 | -6/DSF | Entered Factory 17519 | -5/Factory | Evolved 2 slots: Propulsion x1, Utility x1 17520 | -5/Factory | Identified exit to Upper Caves 17520 | -5/Factory | Identified exit to Extension 18051 | -5/Factory | Cargo convoy interrupted 18099 | -5/Factory | Core integrity fell below 50% 18102 | -5/Factory | Destroyed 7 combat bots 18105 | -5/Factory | System corruption reached 10% 18119 | -5/Factory | Core integrity fell below 20% 18122 | -5/Factory | Destroyed by X-77 Beamer with Gatling Laser Last Messages --------------- 18108_ System corrupted: IFF burst signal emitted. 18110_ Penetrated by Slug. 18110_ Mic. Fission Core destroyed. 18111_ R-10 Processor collects Cesium-ion Thruster. 18111_ Penetrated by Slug. 18111_ Slug penetrates Assembly Bed. 18114_ Adv. Cooling System destroyed. 18114_ Imp. Titanium Leg destroyed. 18116_ Slug penetrates Assembly Bed. 18117_ Core Analyzer destroyed. 18117_ Power Sword destroyed. 18118_ P-70 Sage destroyed. 18119_ X-67 Chaingunner destroyed. 18119_ Hvy. Rocket Launcher destroyed. 18119_ Destroyed Hvy. Rocket Launcher. 18121_ Penetrated by Slug. 18121_ Dropped Huge Storage Unit. 18122_ Dropped Imp. Matter Compressor. Map ----- +----------------------------------------------------+ | ################## # #?#? """?????##????? | | + ####??""? ?###?????? | | #################+### ####???"? ##?##????? | | #######?#?#### ## "### "??"?#??? ????? | | ############## """ #########""##? ?? # ?????? | | ############### """ ##?######## ## ?????# ? ??? | | ############### """ ############"# + ? ???? | | ##############" # # ? # ???? | | ############""# """ # # # ?? | | # "# """ # #+###### ??? | | # ## """ # # ?? | | # ## # """ """ # ?? | | # """" [[ ## # """ """ + """" ?"? ? ?? | | # """" [[ ## ! # """ """ # """" ?" ?? | | # """" [[ ## # + """" "" ??? | | # """" ######## """ """ # """" #??? | | # """" #### ### """ """ # """" #??# | | # """" #### ### """ """ # """" #??? | | # / ###? ### # ^ #? ? | | # #########+####+###### # ?? | | # = # ? ?### #### ###### # ?" | | ?######+######?"" ###?####+###### # ?" | | #### ? ###??" ?## # ! # #??? | | #?#? ?? ??## "T ### # ! # #??? | | ? ? ? ### "?? ### #=x!! # " #??" | | ? ?? ???? ##???" + ? #*@!""" " # # ?? | | ????????? ### # #[!=] "%/u """" #??? | | ????????? #####+### # !!!h %#^ ^"""" #??? | | ?????????? ###?# #! !=h[i %#^ """" #??? | | ?????????#??#?## # ! %!%%%=# ""?? #??? | | ??????????##?### [## % ## ^"""? ? ???? | | ??????????### %[![% *[ ! "?""????????? | | ????????? ??# !|=*=! ?????????? | | ??????????"?# =%%= ?????????? | | ?????????""?# ???????????? | | ??????????"?# ??????????? | | ??????????? # #################+#????????????? | | ????????????# #?? ? ??#? ??????????????? | | ??????????? # ??? "??" ?? #??? ????????????? | | ????????????# ???""S"" #??"??? ??????????? | | ????????????# ??? "??"" """ #?????????????????? | | ????????????+ ? ??/? "?"?#? "??????????????? | | ??????????????? ??? """ ?? ???????????????? | | ????????????????? ?? ??? ? ? #?????????????????? | | ??????????????????? ? ?""" ""????????????????????? | | ????????????????????? ??"????????????????????????? | | ?????????????????????????????????????????????????? | | ?????????????????????????????????????????????????? | | ?????????????????????????????????????????????????? | | ?????????????????????????????????????????????????? | +----------------------------------------------------+ Best States ------------- Heat Dissipation 86 Energy Generation 21 Energy Capacity 315 Matter Stores 300 Matter Capacity 600 Sight Range 16 Robot Scan Range 20 Terrain Scan Range 16 Terrain Scan Density 210 Armor Coverage 450 Evasion (%) 55 Core Analysis 6 Recoil Reduction 4 Offensive Hacking 12 Defensive Hacking 10 Authchip Count 1 Item Schematics ----------------- Carbon-fiber Leg | -8/Materials | Scanalyzed ECM Suite | -8/Materials | Scanalyzed Cryofiber Web | -8/Materials | Hacked Nuclear Core | -8/Materials | Scanalyzed Exp. Sensor Array | -8/Materials | Scanalyzed Combat Drone Bay | -7/Data Miner | Free Gravity Neutralizer | -7/Data Miner | Free Multireflex Exoskeleton | -7/Data Miner | Free Lgt. Regenerative Plating | -7/Data Miner | Free Antimatter Cannon | -7/Data Miner | Free Linear Gravjet | -7/Data Miner | Free Imp. Transmission Jammer | -7/Data Miner | Free Imp. Plasma Cutter | -7/Data Miner | Free Nuclear Pulse Array | -7/Data Miner | Free Gyrokinetic Inverter | -7/Data Miner | Free Robot Schematics ------------------ M-13 Machinist | -10/Materials | Hacked L-41 Fighter | -7/Data Miner | Free G-47 Trooper | -7/Data Miner | Free Y-54 Guardian | -7/Data Miner | Free O-24 Administrator | -7/Data Miner | Free Y-64 Sentinel | -7/Data Miner | Free Fabricated ------------ Exp. Sensor Array | x1 | -7/Factory Repaired ---------- Nothing Studied --------- Carbon-fiber Leg | -8/Materials | Hacked Alien Tech Used ----------------- None Achievements -------------- Short-term Sacrifices Challenges ------------ None Game ------ Seed FactoryHoverMicrothruster Manual? 0 Play Time 02:17:49 Cumulative 219.4 hours Start 2026.09.24 @ 21:17:59 End 2026.09.24 @ 23:42:18 Sessions 3 Manual Loads 0 Difficulty Rogue Special Mode None Game No. 150 Rogue 150 Adventurer 0 Explorer 0 Win Type - Total 7 Types 5/0/1/1/0/0/0/0/0/0 Lore% 66 Gallery% 55 Achievement% 50 Wizard Run 0 Options --------- Layout 2 ASCII 0 Keyboard 1 Movement Numpad Keybinds 0 Fullscreen 2 Font 32/SmallcapsGlow Map View 50x44 Zoom Use 0% Tactical HUD 1 Map Filters NONE Filters NONE Steam 1 RUN: cd2981ac-b612-4ec0-a150-7e505242664c